Workbook

Sheet Лист1
D1: «УТВЕРЖДАЮ»
D2: Директор ДЭиБПД
D3: АО «Коломенский Завод»
D4: ______________ Степанкевич В.С.
B7: № __1-КЗ.М10.ПП__ | D7: от «_02_» _июля_ 20 _26_ г.
A9: Дефектная ведомость объемов работ Объект: «Реконструкция цеха М-10 (в осях "П-Т"/"23-25")» на территории АО «Коломенский Завод».
A11: № | B11: Вид работ | C11: Ед. измер | D11: Формула расчета | E11: Объем | F11: Примечание | G11: вопр. СДО | H11: ответ
A13: Раздел. 1 Демонтажные работы в осях "П-Т"/"23-25"
A14: 1 | B14: Демонтаж существующей керамической плитки стен | C14: м2 | D14: (((2.63+0.627+0.3)*1.552)*2)+(3.257*1.552)+(((6.564*2.9)/2)*2) | E14: =ВычислитьЯчейку(D14) -> 35.131392
A15: =A14+1 -> 2 | B15: Демонтаж существующей керамической плитки полов | C15: м2 | D15: (2.523*7.76)+(0.627*2.523)+(2.63*2.223) | E15: 27.006891
A16: 3 | B16: Демонтаж металлического обрамления ступеней (уголок 50х50х5) | C16: тн. | D16: 45.414*3.77*0.001 | E16: 0.17121078 | F16: Без перевозки
A17: 4 | B17: Демонтаж металлических конструкций перилл (труба проф.30х30х3; уголок 30х30х3) | C17: м.п. | D17: 7.2 | E17: 7.2 | F17: Без перевозки
A18: 5 | B18: Очистка стен и потолка от старой краски | C18: м2 | D18: (((2.63+0.627+0.3)*1.348)*2)+(0.627*2.523)+(2.63*2.223) | E18: 17.018083
A19: 6 | B19: Демонтаж штукатурки стен и потолка Т=40 мм | C19: м3 | D19: ((((2.63+0.627+0.3)*1.348)*2)+(0.627*2.523)+(2.63*2.223))*0.04 | E19: 0.68072332
A20: 7 | B20: Погрузка мусора в транспорт вручную | C20: тн. | D20: ((35.1+27+17+1)*0.09)*1.8 | E20: 12.9762
A21: =A20+1 -> 8 | B21: Перевозка строительного мусора на полигон | C21: тн. | D21: =D20 -> ((35.1+27+17+1)*0.09)*1.8 | E21: 12.9762 | F21: На расстояние от 47 км
A22: Раздел. 2 Отделочные работы в осях "П-Т"/"23-25"
A23: =A21+1 -> 9 | B23: Штукатурка стен и потолка с обработкой бетоноконтактом (Т=40 мм) | C23: м2 | D23: (((2.63+0.627+0.3)*2.9)*2)+(3.257*2.9)+(((6.564*2.9)/2)*2)+(((0.627*2.523)+(2.63*2.223))*2) | E23: =ВычислитьЯчейку(D23)*1.02 -> 65.24768844 | F23: Смесь сухая штукатурная на цементном вяжущем "Волма", или аналог по согласованию (ПРАЙС) | G23: расход, кг ??? (Типичные цементные штукатурки «ВОЛМА» (ориентир 17 кг/м² при 10 мм, 17*40/10=68кг/м2) | H23: Волма-Тандем (цементная) 15 кг/м² при 10 мм прайс - Григорий
A24: =A23+1 -> 10 | B24: Устройство выравнивающей стяжки полов (Т=50 мм) | C24: м2 | D24: (0.627*2.523)+(2.63*2.223) | E24: =ВычислитьЯчейку(D24)*1.02 -> 7.57697922 | F24: Наливные самовыравнивающие полы "Волма", или аналог по согласованию (ПРАЙС) | G24: расход смеси самовыравн., кг ??? (ориентир 20 кг/м² при 10 мм, 20*50/10=100кг/м2?) + грунтовка, тип, расход? | H24: смесь Волма-Нивелир Стандарт 13–15 кг/м² при 10мм, грунтовка «ВОЛМА-Универсал»: ~1,1–1,7 литра на слой (или ~2,3–3,4 литра на 2 слоя) прайс - Григорий
A25: =A24+1 -> 11 | B25: Шпатлевка потолков с обработкой грунтом глубокого проникновения (за 2 раза) | C25: м2 | D25: =D24 -> (0.627*2.523)+(2.63*2.223) | E25: =ВычислитьЯчейку(D25) -> 7.428411
A26: =A25+1 -> 12 | B26: Окраска потолков акриловой водоэмульсионной краской (за 2 раза) | C26: м2 | D26: =D25 -> (0.627*2.523)+(2.63*2.223) | E26: =ВычислитьЯчейку(D26) -> 7.428411 | F26: Краска водоэмульсионная RAL 9016 (Белый) (ПРАЙС)
A27: 13 | B27: Отделка стен керамической плиткой с затиркой стыков | C27: м2 | D27: (((2.63+0.627+0.3)*2.9)*2)+(3.257*2.9)+(((6.564*2.9)/2)*2) | E27: =ВычислитьЯчейку(D27) -> 49.1115 | F27: Керамическая плитка Kerama Marazzi Тракай серый светлый глянцевый 8,5х28,5, или аналог по согласованию | G27: объем в м2??? | H27: читать тонны как м2, предусмотреть запас 10% на бой и резку прайс - Григорий
A28: =A27+1 -> 14 | B28: Устройство покрытия полов из керамогранитной плитки с затиркой стыков | C28: м2 | D28: (0.627*2.523)+(2.63*2.223) | E28: =ВычислитьЯчейку(D28) -> 7.428411 | F28: Керамогранит - Kerama Marazzi Джиминьяно серый матовый обрезной, нескользкая матовая поверхность, размер 60х60 см. С обязательным устройством сапожка высотой не менее 10 см, или аналог по согласованию (ПРАЙС) | G28: объем в м2??? + устройство сапожка высотой не менее 10 см -??? объем, м.пог., лучше выделить в отд. пункт,т.к. на это применяется отдельная расценка | H28: читать тонны как м2, предусмотреть запас 10% на бой и резку. Сапожок - 2,3м Х 2стены, высотой 10см. прайс - Григорий
A29: =A28+1 -> 15 | B29: Изготовление и монтаж металлических конструкций перилл из нержавеющей стали (Н=1200 мм) | C29: м.п. | D29: (6.564*2)+2.523+(7.19*2) | E29: =ВычислитьЯчейку(D29) -> 30.031 | F29: Ограждения с 3 ригелями из нержавеющей стали (ПРАЙС) | H29: прайс - Григорий
B31: Производство работ осуществляется в помещениях эксплуатируемого объекта капитального строительства, эксплуатация которого не прекращена, в том числе для объектов производственного и непроизводственного назначения без остановки рабочего процесса, при этом: в зоне производства работ отсутствуют загромождающие помещение предметы.
B32: Объём посчитанной данной дефектной ведомостью может отличаться от фактического при выполнении строительно-монтажных работ. При производстве строительно-монтажных работ могут возникнуть работы не учтённые данной деффектной ведомостью.
B34: Составил:
B35: Ведущий специалист ОпС АО "Коломенский Завод"
B36: (должность) | D36: Самойлов А.О.
B37: "02" июля 2026 г. | D37: (подпись) (ФИО)
B39: Проверил:
B40: Начальник отдела по строительству АО "Коломенский Завод"
B41: (должность) | D41: Губанов П.В.
B42: "02" июля 2026 г. | D42: (подпись) (ФИО)

Sheet Лист2
B6: 8.475 | C6: =(0.45*4) -> 1.8 | D6: =C6/0.2 -> 9 | E6: =(D6*B6)*2 -> 152.55
B7: 8.8 | C7: =24-(0.45*4) -> 22.2 | D7: =C7/0.2 -> 111 | E7: =(D7*B7)*2 -> 1953.6 | G7: =E7+E6 -> 2106.15
G8: =E9+E10 -> 2052.11875
B9: 5.575 | C9: =0.325 -> 0.325 | D9: =C9/0.2 -> 1.625 | E9: =(D9*B9)*2 -> 18.11875
B10: 24 | C10: =8.475 -> 8.475 | D10: =C10/0.2 -> 42.375 | E10: =(D10*B10)*2 -> 2034 | G10: 0.888 | H10: =((E6+E7+E9+E10)*G10)*0.001 -> 3.69254265
H14: =0.25*0.125*0.025 -> 0.00078125 | O14: =3.14*0.84 -> 2.6376
I16: =H14*61 -> 0.04765625 | O16: =0.125*4 -> 0.5
J17: =I16*3 -> 0.14296875
E18: 1 | F18: 0.2 | G18: =E18/F18 -> 5 | K18: =J17*2 -> 0.2859375 | O18: =O14*O16 -> 1.3188 | Q18: =O18*2 -> 2.6376
E19: 1 | F19: 0.2 | G19: =E19/F19 -> 5 | H19: =(G18+G19)*G10 -> 8.88
I20: =H19*2 -> 17.76
C30: Устройство трубопровода из полипропиленовых труб | D30: м | E30: 5
C31: Устройство трубки для пневмо систем | D31: м | E31: 1
C32: Устройство трубопровода из стальной трубы ВГП | D32: м | E32: 3
C33: Монтаж крана муфтового с ручным приводом или без привода водопроводная на номинальное давление до 10 МПа, номинальный диаметр: 15 мм | D33: шт | E33: 4
C34: Монтаж кранов шаровых Ø15 | D34: шт | E34: 4
C35: Монтаж крана муфтового Ø 20 | D35: шт | E35: 1
C36: Монтаж кранов шаровых Ø20 | D36: шт | E36: 1
C37: Устройство фитингов прямых с внутренней резьбой с накидной гайкой | D37: шт | E37: 1
C38: Устройство муфт полипропиленовых Ø 20 мм | D38: шт | E38: 3
C39: Устройство фитингов полипропиленовых с переходом на наружную резьбу 20 мм | D39: шт | E39: 2
C40: Установка сгонов стальных оцинкованных с муфтой и контргайкой, Ø 20 мм | D40: шт | E40: 1
C41: Установка влагоотделителя | D41: шт | E41: 1
C42: Врезка трубопровода в действующие магистрали, диаметр наружный врезаемой трубы 57 мм | D42: шт | E42: 1

Sheet Лист3
A2: Вопросы по дробенаклепу в М-10 на 02.06.2025
A4: 1. | B4: На данном участке (оси Д-И(+0,5м)/4'-5'; Л-М/4'(+0,5м)-5') нет действующих силовых эл-х щитов от которых возможно было бы провести электроснабжение к данным станкам
A5: 2. | B5: На данном участке (оси Д-И(+0,5м)/4'-5'; Л-М/4'(+0,5м)-5') нет действующих опусков магистрали сжатого воздуха от которых необходимо провести воздухоснабжение к данным станкам
A6: 3. | B6: В инструкции к устанавливаемому оборудованию не указана необходимость установки осушителя воздуха. Если осушитель необходим, то необходимо закладывать подключение осушителя отдельно.
B17: =(6.8*0.2*1.25+7.8*0.6*(0.25*2)) -> 4.04
B18: =(7.8*(0.4+0.4+1.25)*0.1+(7.8-(4.115+0.1+0.1))*(0.4+0.4+1.25)*0.65+1.725*(0.4+0.6)*0.65) -> 7.3640125
